bitfinex/quotes_SOLUSD_20250514
["timestamp","ask_amount","ask_price","bid_price","bid_amount"]
[1747245904578,17.26965457,175.97,175.92,43.26965457]
[1747245905402,17.26965457,175.97,175.92,17.26965457]
[1747245906289,17.26965457,175.96,175.9,27.5962]
[1747245906492,5.68375582,175.94,175.91,17.26965457]
[1747245907388,5.68375582,175.94,175.9,44.86585457]
[1747245907697,22.95341039,175.94,175.89,36.10965457]
[1747245907905,17.26965457,175.93,175.89,36.10965457]
[1747245908095,17.26965457,175.9,175.86,7.589]
[1747245908281,17.26965457,175.9,175.86,24.85865457]
[1747245908481,5.68537153,175.89,175.88,26.0]
[1747245908998,22.9550261,175.89,175.84,17.26965457]
[1747245909201,17.26965457,175.88,175.83,45.12]
[1747245909481,22.9550261,175.89,175.85,17.26965457]
[1747245910514,5.68601808,175.87,175.84,17.26965457]
[1747245910715,5.68537153,175.89,175.85,17.26965457]
[1747245911507,22.9550261,175.89,175.83,30.61884554]
[1747245911708,5.68537153,175.89,175.85,17.26965457]
[1747245911881,22.9550261,175.89,175.85,17.26965457]
[1747245912088,5.68537153,175.89,175.85,17.26965457]
[1747245913108,17.26965457,175.9,175.85,17.26965457]
[1747245913287,17.26965457,175.87,175.83,26.0]
[1747245913616,17.26965457,175.88,175.83,43.26965457]
[1747245913987,17.26965457,175.88,175.84,17.26965457]
[1747245914508,0.28432314,175.91,175.85,17.26965457]
[1747245914699,17.26965457,175.89,175.85,17.26965457]
[1747245915410,5.68569479,175.88,175.85,17.26965457]
[1747245915623,5.68569479,175.88,175.84,17.26965457]
[1747245916028,5.68569479,175.88,175.85,17.26965457]
[1747245916413,5.68504832,175.9,175.86,17.26965457]
[1747245916637,5.68504832,175.9,175.89,17.26965457]
[1747245916926,19.88978598,175.97,175.9,1.554]
[1747245917131,17.26965457,175.96,175.92,17.26965457]
[1747245917324,19.88978598,175.97,175.92,17.26965457]
[1747245917627,5.68278683,175.97,175.93,17.26965457]
[1747245918513,22.9524414,175.97,175.93,17.26965457]
[1747245918719,5.68278683,175.97,175.93,26.0]
[1747245918926,5.68278683,175.97,175.95,17.26965457]
[1747245919539,5.68181818,176.0,175.96,17.26965457]
[1747245920536,5.68181818,176.0,175.94,19.74]
[1747245920537,5.68181818,176.0,175.97,17.26965457]
[1747245921434,22.95211848,175.98,175.92,45.82]
[1747245921739,22.95211848,175.98,175.94,17.26965457]
[1747245922111,5.68246391,175.98,175.97,17.26965457]
[1747245922415,5.68149536,176.01,175.97,17.26965457]
[1747245922849,5.68149536,176.01,175.93,1.13659449]
[1747245922850,5.68149536,176.01,175.99,17.26965457]
[1747245923012,5.68149536,176.01,175.98,17.26965457]
[1747245923837,5.68149536,176.01,175.97,17.26965457]
[1747245924517,22.95114993,176.01,175.97,17.26965457]
[1747245924906,17.26965457,175.99,175.91,1.13644107]
[1747245925238,19.88523378,176.01,175.97,17.26965457]
[1747245925439,37.15488835,176.01,175.97,17.26965457]
[1747245925636,19.88523378,176.01,175.97,17.26965457]
[1747245926619,19.88523378,176.01,175.93,46.24]
[1747245926923,37.15488835,176.01,175.97,17.26965457]
[1747245927125,19.88523378,176.01,175.97,17.26965457]
[1747245928716,37.15488835,176.01,175.97,17.26965457]
[1747245929139,19.88523378,176.01,175.97,17.26965457]
[1747245929341,5.68149536,176.01,175.98,17.26965457]
[1747245929528,5.68149536,176.01,175.99,17.26965457]
[1747245930537,5.68149536,176.01,175.98,17.26965457]
[1747245931120,5.68149536,176.01,175.97,1.5581]
[1747245931341,5.68149536,176.01,175.98,17.26965457]
[1747245933134,5.68149536,176.01,175.99,17.26965457]
[1747245933744,143.88120665,176.02,176.0,17.26965457]
[1747245933925,143.88120665,176.02,176.01,17.26965457]
[1747245934238,5.68120665,176.02,176.01,17.26965457]
[1747245934646,8.81023987,176.04,176.01,17.26965457]
[1747245935025,14.49077639,176.04,176.03,17.26965457]
[1747245935548,8.81023987,176.04,176.03,17.26965457]
[1747245936235,14.49076702,176.04,176.03,17.26965457]
[1747245936434,14.49076702,176.04,175.97,2.69437002]
[1747245936435,31.76042159,176.04,175.95,46.22]
[1747245936635,17.26965457,176.03,175.98,43.26965457]
[1747245936824,17.26965457,176.03,175.98,26.0]
[1747245937024,40.28121232,176.04,175.99,17.26965457]
[1747245937224,5.68084985,176.03,175.99,17.26965457]
[1747245938848,5.68084985,176.03,176.02,17.26965457]
[1747245939037,5.68084985,176.03,175.98,26.0]
[1747245939221,5.68084985,176.03,176.01,17.26965457]
[1747245940331,8.81023987,176.04,176.02,17.26965457]
[1747245940542,14.49077613,176.04,176.03,17.26965457]
[1747245940716,14.49077613,176.04,176.01,26.0]
[1747245940717,14.49077613,176.04,176.02,17.26965457]
[1747245941321,8.81023987,176.04,176.03,17.26965457]
[1747245942830,8.81023987,176.04,176.03,43.26965457]
[1747245944223,14.49076702,176.04,176.03,26.0]
[1747245944424,14.49076702,176.04,176.03,43.26965457]
[1747245944651,8.81023987,176.04,176.03,43.26965457]
[1747245946571,8.81023987,176.04,176.03,31.68084985]
[1747245946726,8.81023987,176.04,176.03,26.0]
[1747245947085,8.81023987,176.04,176.03,43.26965457]
[1747245947425,8.81023987,176.04,176.03,26.0]
[1747245947627,8.81023987,176.04,176.03,43.26965457]
[1747245947930,8.81023987,176.04,176.02,26.0]
[1747245948129,8.81023987,176.04,176.03,17.26965457]
[1747245948348,8.81023987,176.04,176.02,26.0]
[1747245948557,14.49092018,176.04,176.02,43.26965457]
[1747245948948,14.49092018,176.04,176.02,26.0]
[1747245949154,14.49092018,176.04,176.02,43.26965457]
[1747245949455,14.49092018,176.04,176.01,20.46]
[1747245949657,14.49092018,176.04,176.02,17.26965457]
[1747245949958,14.49092018,176.04,176.03,17.26965457]
[1747245950129,8.81023987,176.04,176.03,17.26965457]
[1747245950530,8.81023987,176.04,176.03,43.26965457]
[1747245951231,8.81023987,176.04,176.03,17.26965457]
[1747245951733,8.81023987,176.04,176.03,43.26965457]
[1747245952038,8.81023987,176.04,176.03,17.26965457]
[1747245953801,8.81023987,176.04,176.01,26.14142914]
[1747245954081,8.81023987,176.04,176.03,43.26965457]
[1747245955876,7.14363987,176.04,176.03,7.7874]
[1747245956071,7.14363987,176.04,176.03,49.38755328]
[1747245957270,7.14363987,176.04,176.03,30.73790442]
[1747245957590,7.14363987,176.04,176.03,56.73790442]
[1747245957775,7.14363987,176.04,176.03,45.81705457]
[1747245958970,7.14363987,176.04,176.03,71.81705457]
[1747245959592,7.14363987,176.04,176.03,51.05705457]
[1747245959961,7.14363987,176.04,176.03,71.77705457]
[1747245960486,7.14363987,176.04,176.03,51.05705457]
[1747245960779,7.14363987,176.04,176.03,71.75705457]
[1747245960996,7.14363987,176.04,176.03,51.05705457]
[1747245961186,7.14363987,176.04,176.03,71.75705457]
[1747245964575,7.14363987,176.04,176.03,26.0]
[1747245964782,12.82416702,176.04,176.0,20.64]
[1747245964982,30.09382159,176.04,175.94,9.22771718]
[1747245965204,30.09382159,176.04,175.99,17.26965457]
[1747245966210,27.0254849,176.04,176.0,17.26965457]
[1747245966405,12.82416702,176.04,176.01,17.26965457]
[1747245967292,12.82416702,176.04,176.02,17.26965457]
[1747245967488,12.82416702,176.04,176.03,17.26965457]
[1747245968101,12.82416702,176.04,175.98,26.0]
[1747245968405,12.82416702,176.04,176.01,17.26965457]
[1747245968598,12.82416702,176.04,176.0,17.26965457]
[1747245968796,30.09382159,176.04,176.0,17.26965457]
[1747245969007,30.09382159,176.04,175.99,17.26965457]
[1747245969185,44.29513947,176.04,175.99,17.26965457]
[1747245969381,27.0254849,176.04,175.97,26.0]
[1747245969599,27.0254849,176.04,175.97,43.26965457]
[1747245969899,17.26965457,176.02,175.97,26.0]
[1747245970098,5.68149536,176.01,175.98,17.26965457]
[1747245970487,5.68149536,176.01,175.97,26.0]
[1747245970793,5.68149536,176.01,175.99,17.26965457]
[1747245971003,5.68149536,176.01,176.0,17.26965457]
[1747245971803,5.68149536,176.01,175.97,26.0]
[1747245972000,21.34495775,176.04,176.03,26.0]
[1747245972001,7.14363987,176.04,176.03,26.0]
[1747245972313,7.14363987,176.04,176.03,43.26965457]
[1747245972512,7.14363987,176.04,176.03,17.26965457]
[1747245972692,7.14363987,176.04,176.02,26.0]
[1747245972693,30.09382159,176.04,176.02,26.0]
[1747245972890,12.82416702,176.04,176.02,26.0]
[1747245973702,7.14363987,176.04,176.03,17.26965457]
[1747245974085,7.14363987,176.04,176.02,43.26965457]
[1747245974811,12.82416702,176.04,176.02,17.26965457]
[1747245975014,12.82416702,176.04,176.0,17.26965457]
[1747245975306,12.82416702,176.04,176.01,26.0]
[1747245975908,12.82416702,176.04,176.0,17.26965457]
[1747245976701,30.09382159,176.04,175.99,17.26965457]
[1747245976903,17.26965457,176.03,175.99,17.26965457]
[1747245977294,44.29513947,176.04,175.99,17.26965457]
[1747245977616,27.0254849,176.04,176.0,17.26965457]
[1747245978690,27.0254849,176.04,175.94,8.0915]
[1747245978931,17.26965457,176.01,175.94,8.0915]
[1747245979093,17.26965457,176.01,175.97,17.26965457]
[1747245979812,27.0254849,176.04,175.97,17.26965457]
[1747245979992,27.0254849,176.04,175.98,17.26965457]
[1747245980195,17.26965457,176.02,175.98,17.26965457]
[1747245980498,17.26965457,176.02,175.97,43.26965457]
[1747245980994,5.68149536,176.01,175.97,43.26965457]
[1747245981611,17.26965457,176.0,175.97,26.0]
[1747245982103,22.95114993,176.01,175.97,26.0]
[1747245982505,5.68149536,176.01,175.97,43.26965457]
[1747245982707,22.95114993,176.01,175.97,43.26965457]
[1747245983321,22.95114993,176.01,175.97,26.0]
[1747245983524,22.95114993,176.01,175.97,43.26965457]
[1747245983719,5.68149536,176.01,175.97,43.26965457]
[1747245985595,22.95114993,176.01,175.97,43.26965457]
[1747245986521,5.68149536,176.01,175.97,43.26965457]
[1747245986830,5.68149536,176.01,175.98,17.26965457]
[1747245987165,5.68149536,176.01,175.97,26.0]
[1747245987309,5.68149536,176.01,175.98,17.26965457]
[1747245988010,37.15488835,176.01,175.94,6.464]
[1747245988211,17.26965457,176.0,175.95,43.26965457]
[1747245988420,17.26965457,176.0,175.96,17.26965457]
[1747245988604,21.34514127,176.04,175.99,17.26965457]
[1747245988924,37.15262905,176.03,175.95,26.0]
[1747245989129,37.15262905,176.03,175.99,17.26965457]
[1747245989500,5.68084985,176.03,176.0,17.26965457]
[1747245992038,5.68084985,176.03,175.99,17.26965457]
[1747245995348,22.95050442,176.03,175.98,17.26965457]
[1747245996642,17.26965457,176.01,175.97,26.0]
[1747245997174,5.68181818,176.0,175.97,26.0]
[1747245997841,22.95147275,176.0,175.97,26.0]
[1747245999446,5.68181818,176.0,175.97,26.0]
[1747245999651,22.95147275,176.0,175.97,26.0]
[1747246001151,31.47363009,176.01,175.97,26.0]
[1747246002856,17.26965457,176.0,175.96,17.26965457]
[1747246003035,17.26965457,175.99,175.95,26.0]
[1747246003234,5.68246391,175.98,175.95,26.0]
[1747246003638,5.68246391,175.98,175.95,43.26965457]
[1747246004556,5.68246391,175.98,175.9,7.8333]
[1747246004557,17.26965457,175.96,175.9,7.8333]
[1747246004759,17.26965457,175.95,175.9,6.1786]
[1747246004941,19.8886237,175.98,175.9,17.26965457]
[1747246004942,17.26965457,175.94,175.9,17.26965457]
[1747246005147,5.68407889,175.93,175.9,17.26965457]
[1747246006135,5.68407889,175.93,175.91,43.26965457]
[1747246006859,138.2,175.99,175.92,34.53930914]
[1747246007063,138.2,176.01,175.98,17.26965457]
[1747246007360,5.68181435,176.01,175.98,17.26965457]
[1747246007773,5.68181435,176.01,175.95,46.76]
[1747246008072,5.68181435,176.01,175.97,17.26965457]
[1747246008865,22.95146892,176.01,175.97,17.26965457]
[1747246009366,22.95146892,176.01,175.95,46.76]
[1747246009567,22.95146892,176.01,175.97,17.26965457]
[1747246012757,37.15520734,176.01,175.96,17.26965457]
[1747246014958,5.68181435,176.01,175.97,17.26965457]
[1747246015357,5.68181435,176.01,175.99,17.26965457]
[1747246015541,5.68181435,176.01,176.0,17.26965457]
[1747246015961,5.68181435,176.01,175.99,17.26965457]
[1747246017261,5.68181435,176.01,175.95,26.0]
[1747246017466,5.68181435,176.01,175.99,17.26965457]
[1747246017839,5.68181435,176.01,175.98,17.26965457]
[1747246019168,5.68181435,176.01,175.95,26.0]
[1747246019368,5.68181435,176.01,175.98,17.26965457]
[1747246019542,5.68181435,176.01,175.96,4.47490507]
[1747246019746,5.68181435,176.01,175.98,17.26965457]
[1747246019941,5.68181435,176.01,175.99,17.26965457]
[1747246020467,5.68097407,176.03,176.0,17.26965457]
[1747246020771,7.14363987,176.04,176.02,17.26965457]
[1747246021070,12.82416702,176.04,176.02,17.26965457]
[1747246021258,12.82416702,176.04,176.0,17.26965457]
[1747246022265,30.09382159,176.04,175.99,37.78965457]
[1747246022460,12.82416702,176.04,175.99,37.78965457]
[1747246022665,27.0254849,176.04,176.0,17.26965457]
[1747246023167,12.82416702,176.04,175.98,27.5414]
[1747246023371,12.82416702,176.04,176.01,17.26965457]
[1747246023979,12.82416702,176.04,176.0,17.26965457]
[1747246024274,12.82416702,176.04,175.98,48.0414]
[1747246024477,12.82416702,176.04,176.0,17.26965457]
[1747246027790,12.82416702,176.04,176.02,17.26965457]
[1747246029279,12.82416702,176.04,176.03,17.26965457]
[1747246030078,12.82416702,176.04,176.01,26.0]
[1747246030286,12.82416702,176.04,176.02,17.26965457]
[1747246030466,12.82416702,176.04,176.01,26.0]
[1747246030671,30.09382159,176.04,175.99,26.0]
[1747246030872,12.82416702,176.04,176.0,17.26965457]
[1747246031065,12.82416702,176.04,176.01,17.26965457]
[1747246031254,12.82416702,176.04,175.99,26.0]
[1747246031476,12.82416702,176.04,176.0,17.26965457]
[1747246032609,27.0254849,176.04,175.99,26.0]
[1747246032767,44.29513947,176.04,175.99,26.0]
[1747246032968,44.29513947,176.04,175.99,43.26965457]
[1747246033699,12.82416702,176.04,176.03,17.26965457]
[1747246034066,12.82416702,176.04,176.02,17.26965457]
[1747246034584,12.82416702,176.04,176.01,26.0]
[1747246035266,12.82416702,176.04,176.02,17.26965457]
[1747246036590,12.82416702,176.04,176.01,43.26965457]
[1747246037490,12.82416702,176.04,176.01,26.0]
[1747246037792,12.82416702,176.04,176.01,43.26965457]
[1747246038173,12.82416702,176.04,176.01,26.0]
[1747246038375,12.82416702,176.04,176.02,17.26965457]
[1747246039696,12.82416702,176.04,176.01,26.0]
[1747246039873,12.82416702,176.04,176.02,17.26965457]
[1747246041410,12.82416702,176.04,176.01,26.0]
[1747246041894,12.82416702,176.04,176.01,43.26965457]
[1747246042093,12.82416702,176.04,176.01,26.0]
[1747246042263,12.82416702,176.04,175.98,21.8414]
[1747246042264,12.82416702,176.04,176.0,17.26965457]
[1747246046279,12.82416702,176.04,176.0,17.26965457]
[1747246046485,7.14363987,176.04,176.03,17.26965457]
[1747246046909,12.82416702,176.04,176.03,17.26965457]
[1747246047399,12.82416702,176.04,176.01,26.0]
[1747246047597,12.82416702,176.04,176.02,17.26965457]
[1747246049298,12.82416702,176.04,176.03,17.26965457]
[1747246049623,12.82416702,176.04,176.01,26.0]
[1747246049778,12.82416702,176.04,176.02,17.26965457]
[1747246050498,12.82416702,176.04,176.01,26.0]
[1747246050702,12.82416702,176.04,176.02,17.26965457]
[1747246051282,17.26965457,176.03,175.96,6.504]
[1747246051506,17.26965457,176.02,175.97,17.26965457]
[1747246051708,17.26965457,176.02,175.97,26.0]
[1747246051918,17.26965457,176.02,175.96,6.504]
[1747246052224,17.26965457,176.02,175.97,17.26965457]
[1747246053212,5.68149536,176.01,175.97,17.26965457]
[1747246055396,5.68149536,176.01,175.96,32.504]
[1747246055596,5.68149536,176.01,175.97,17.26965457]
[1747246056798,14.20314836,176.02,175.99,17.26965457]
[1747246057385,14.20314836,176.02,175.98,17.26965457]
[1747246059124,19.88432095,176.02,175.98,17.26965457]
[1747246059345,7.14363987,176.04,175.96,32.504]
[1747246059505,7.14363987,176.04,176.02,17.26965457]
[1747246060022,7.14363987,176.04,176.01,17.26965457]
[1747246060533,12.82427669,176.04,176.01,17.26965457]
[1747246060700,12.82427669,176.04,175.96,26.724]
[1747246060701,17.26965457,176.02,175.95,26.0]
[1747246061033,17.26965457,176.02,175.97,43.26965457]
[1747246061408,17.26965457,176.02,175.98,17.26965457]
[1747246061827,5.68149536,176.01,175.98,17.26965457]
[1747246063945,5.68117259,176.02,175.99,17.26965457]
[1747246064716,17.26965457,176.0,175.97,26.0]
[1747246065042,17.26965457,176.0,175.96,17.26965457]
[1747246065240,17.26965457,176.01,175.96,17.26965457]
[1747246065545,37.15375864,176.02,175.97,17.26965457]
[1747246066455,17.26965457,176.01,175.96,26.0]
[1747246066739,17.26965457,176.01,175.97,17.26965457]
[1747246067735,19.88410407,176.02,175.97,17.26965457]
[1747246067923,37.15375864,176.02,175.97,17.26965457]
[1747246070514,5.68181818,176.0,175.96,26.0]
[1747246070841,5.68181818,176.0,175.97,17.26965457]
[1747246071140,5.68181818,176.0,175.98,17.26965457]
[1747246071333,5.68117259,176.02,175.99,17.26965457]
[1747246071515,5.68117259,176.02,176.01,17.26965457]
[1747246073234,5.68117259,176.02,175.99,17.26965457]
[1747246074720,5.68117259,176.02,175.98,6.4132]
[1747246075028,5.68117259,176.02,175.99,17.26965457]
[1747246076154,5.68117259,176.02,175.98,6.4132]
[1747246076320,19.88410407,176.02,175.96,26.0]
[1747246076520,19.88410407,176.02,175.98,17.26965457]
[1747246077418,5.68117259,176.02,175.99,17.26965457]
[1747246077622,5.68117259,176.02,176.0,17.26965457]
[1747246078351,5.68117259,176.02,175.99,17.26965457]
[1747246080153,5.68117259,176.02,175.97,20.1]
[1747246080355,5.68117259,176.02,175.99,17.26965457]
[1747246082054,143.88087349,176.03,176.01,17.26965457]
[1747246082262,143.88087349,176.03,176.02,17.26965457]
[1747246083358,143.88087349,176.03,175.97,26.91916808]
[1747246083656,143.88087349,176.03,176.01,17.26965457]
[1747246084531,143.88087349,176.03,175.97,20.1]
[1747246084731,143.88087349,176.03,176.01,17.26965457]
[1747246085758,143.88087349,176.03,175.95,5.68332389]
[1747246085946,143.88087349,176.03,176.0,17.26965457]
[1747246086451,143.88087349,176.03,176.01,17.26965457]
[1747246086643,143.88087349,176.03,176.02,17.26965457]
[1747246087353,143.88087349,176.03,176.01,17.26965457]
[1747246090256,5.68087349,176.03,176.01,17.26965457]
[1747246091164,5.68087349,176.03,175.98,26.0]
[1747246091364,5.68087349,176.03,176.01,17.26965457]
[1747246095564,19.88299812,176.03,175.99,17.26965457]
[1747246096053,19.88299812,176.03,176.0,17.26965457]
[1747246096467,19.88299812,176.03,175.98,45.78]
[1747246096671,19.88299812,176.03,175.99,17.26965457]
[1747246097166,19.88299812,176.03,175.98,45.78]
[1747246097364,19.88299812,176.03,175.99,17.26965457]
[1747246099969,37.15265269,176.03,175.98,26.0]
[1747246100157,19.88299812,176.03,175.99,17.26965457]
[1747246100679,19.88299812,176.03,176.0,17.26965457]
[1747246100990,19.88299812,176.03,175.99,17.26965457]
[1747246101167,19.88299812,176.03,175.98,26.0]
[1747246101354,19.88299812,176.03,175.99,17.26965457]
[1747246101554,17.26965457,176.0,175.95,26.0]
[1747246101849,17.26965457,176.0,175.95,63.04965457]
[1747246102054,17.26965457,176.0,175.96,17.26965457]
[1747246102255,17.26965457,175.98,175.94,19.78]
[1747246102562,17.26965457,175.99,175.95,17.26965457]
[1747246102763,17.26965457,176.0,175.96,17.26965457]
[1747246103075,37.15265269,176.03,175.99,17.26965457]
[1747246103457,37.15265269,176.03,175.98,17.26965457]
[1747246105492,5.68087349,176.03,176.01,17.26965457]
[1747246106690,17.26965457,176.02,175.96,32.0303]
[1747246106992,19.88299812,176.03,175.96,51.8903]
[1747246107162,17.26965457,176.02,175.97,17.26965457]
[1747246107360,19.88299812,176.03,175.98,17.26965457]
[1747246107564,37.15265269,176.03,175.99,17.26965457]
[1747246107862,37.15265269,176.03,175.98,17.26965457]
[1747246108268,17.26965457,176.02,175.98,17.26965457]
[1747246108978,17.26965457,176.02,175.96,51.8903]
[1747246109180,17.26965457,176.02,175.97,17.26965457]
[1747246109487,17.26965457,176.01,175.97,17.26965457]
[1747246109863,17.26965457,176.01,175.96,51.9703]
[1747246109864,5.68181818,176.0,175.96,51.9703]
[1747246110281,5.68181818,176.0,175.97,17.26965457]
[1747246110503,5.68181818,176.0,175.99,17.26965457]
[1747246110870,5.68181818,176.0,175.96,51.9703]
[1747246111602,5.68181818,176.0,175.97,17.26965457]
[1747246111771,19.88547807,176.01,175.97,17.26965457]
[1747246113275,17.26965457,176.0,175.94,19.94]
[1747246113581,17.26965457,176.0,175.92,27.7442]
[1747246113582,17.26965457,176.0,175.95,43.26965457]
[1747246113889,17.26965457,176.0,175.95,26.0]
[1747246114115,17.26965457,175.99,175.95,26.0]
[1747246115191,5.68246391,175.98,175.95,26.0]
[1747246115390,17.26965457,175.97,175.92,8.0042]
[1747246115603,17.26965457,175.97,175.93,37.18965457]
[1747246115898,17.26965457,175.97,175.93,17.26965457]
[1747246116599,37.15827827,175.98,175.93,17.26965457]
[1747246118561,19.8886237,175.98,175.93,17.26965457]
[1747246118767,17.26965457,175.97,175.93,17.26965457]
[1747246120166,5.68310979,175.96,175.93,17.26965457]
[1747246126307,5.68310979,175.96,175.92,19.86]
[1747246126508,5.68310979,175.96,175.93,17.26965457]
[1747246128207,5.68310979,175.96,175.91,45.74]
[1747246128404,37.16053885,175.96,175.91,45.72]
[1747246128580,37.16053885,175.96,175.91,62.98965457]
[1747246129404,37.16053885,175.96,175.92,17.26965457]
[1747246129614,19.89088428,175.96,175.92,17.26965457]
[1747246130113,37.16053885,175.96,175.91,26.0]
[1747246130279,17.26965457,175.95,175.91,43.26965457]
[1747246131106,5.68375582,175.94,175.91,43.26965457]
[1747246133405,5.68343279,175.95,175.91,43.26965457]
[1747246133903,5.68343279,175.95,175.92,17.26965457]
[1747246134278,22.95308736,175.95,175.89,26.0]
[1747246134502,22.95308736,175.95,175.91,36.90965457]
[1747246135099,5.68343279,175.95,175.92,17.26965457]
[1747246136977,5.68343279,175.95,175.91,19.64]
[1747246137391,5.68343279,175.95,175.92,17.26965457]
[1747246137605,5.68343279,175.95,175.91,19.64]
[1747246137808,5.68343279,175.95,175.91,36.90965457]
[1747246138122,5.68343279,175.95,175.91,17.26965457]
[1747246138319,5.68343279,175.95,175.91,36.84965457]
[1747246139512,5.68343279,175.95,175.92,17.26965457]
[1747246141348,11.02546881,175.96,175.92,11.02546881]
[1747246141757,11.02546881,175.95,175.91,19.58]
[1747246142048,11.02546881,175.95,175.91,30.60546881]
[1747246142760,14.20735246,175.97,175.91,19.58]
[1747246142761,11.02546881,175.94,175.91,19.58]
[1747246143627,5.68375582,175.94,175.91,19.58]
[1747246144367,5.68375582,175.94,175.91,30.60546881]
[1747246145534,5.68375582,175.94,175.91,19.58]
[1747246147539,5.68375582,175.94,175.9,30.52546881]
[1747246148426,5.68375582,175.94,175.91,11.02546881]
[1747246150355,16.70922463,175.94,175.9,19.5]
[1747246150528,5.68375582,175.94,175.91,11.02546881]
[1747246153153,5.68375582,175.94,175.9,19.48]
[1747246153541,5.68375582,175.94,175.91,11.02546881]
[1747246153931,11.02546881,175.93,175.86,19.58]
[1747246154130,11.02546881,175.93,175.89,11.02546881]
[1747246154335,11.02546881,175.93,175.88,19.46]
[1747246154638,11.02546881,175.91,175.87,26.0]
[1747246155028,11.02546881,175.9,175.87,26.0]
[1747246155228,11.02546881,175.88,175.84,17.45216881]
[1747246155428,11.02546881,175.88,175.85,19.44]
[1747246156259,16.71084034,175.89,175.85,30.46546881]
[1747246156463,11.02546881,175.88,175.84,45.42]
[1747246156635,11.02546881,175.87,175.82,19.42]
[1747246156831,11.02546881,175.87,175.83,11.02546881]
[1747246157151,5.6863414,175.86,175.83,11.02546881]
[1747246157341,5.6863414,175.86,175.82,36.66515765]
[1747246157541,5.6863414,175.86,175.82,62.66515765]
[1747246158363,17.24515765,175.85,175.81,45.37694914]
[1747246158751,17.24515765,175.85,175.81,36.64515765]
[1747246159150,5.6863414,175.86,175.81,36.64515765]
[1747246159346,22.93149905,175.86,175.81,36.64515765]
[1747246159548,17.24515765,175.85,175.81,36.64515765]
[1747246159912,17.24515765,175.85,175.79,212.76]
[1747246160165,17.24515765,175.84,175.8,36.62515765]
[1747246160535,17.24515765,175.84,175.8,19.38]
[1747246160959,17.24515765,175.84,175.8,36.62515765]
[1747246161332,5.6873116,175.83,175.8,36.62515765]
[1747246162776,0.14216157,175.9,175.83,26.0]
[1747246162940,22.92923654,175.93,175.89,17.24515765]
[1747246163147,22.92923654,175.93,175.88,17.24515765]
[1747246163336,5.68472514,175.91,175.87,36.60515765]
[1747246163537,22.92988279,175.91,175.87,36.60515765]
[1747246164491,22.92988279,175.91,175.87,19.36]
[1747246164660,22.92988279,175.91,175.86,17.24515765]
[1747246164661,17.24515765,175.9,175.86,17.24515765]
[1747246165086,17.24515765,175.9,175.85,36.66515765]
[1747246165486,5.68537153,175.89,175.85,36.66515765]
[1747246165781,5.68537153,175.89,175.83,26.0]
[1747246165782,17.24515765,175.88,175.84,19.4]
[1747246166808,5.68601808,175.87,175.84,19.4]
[1747246167117,5.68601808,175.87,175.78,18.64964886]
[1747246167118,17.24515765,175.86,175.76,2.8342346]
[1747246167270,17.24515765,175.85,175.76,2.8342346]
[1747246167459,17.24515765,175.84,175.78,38.82]
[1747246167664,17.24515765,175.83,175.79,19.4]
[1747246167961,17.24515765,175.82,175.79,19.4]
[1747246168192,17.24515765,175.82,175.77,52.9465]
[1747246168396,17.24515765,175.82,175.78,36.64515765]
[1747246168563,17.24515765,175.83,175.78,17.24515765]
[1747246168758,22.93279273,175.82,175.77,45.4]
[1747246168965,22.93279273,175.82,175.77,62.64515765]
[1747246169700,17.24515765,175.79,175.75,36.66515765]
[1747246170065,17.24515765,175.79,175.75,19.42]
[1747246170368,17.24515765,175.79,175.75,36.66515765]
[1747246170710,5.68763508,175.82,175.78,17.24515765]
[1747246171009,17.24515765,175.83,175.78,17.24515765]
[1747246171189,17.24515765,175.82,175.75,19.42]
[1747246171495,17.24515765,175.81,175.76,17.24515765]
[1747246171897,17.24515765,175.8,175.76,17.24515765]
[1747246172106,17.24515765,175.8,175.75,19.42]
[1747246172282,17.24515765,175.8,175.76,17.24515765]
[1747246172905,5.68860572,175.79,175.74,19.4]
[1747246173071,5.68860572,175.79,175.75,17.24515765]
[1747246173272,5.68860572,175.79,175.74,17.24515765]
[1747246173501,5.68860572,175.79,175.76,17.24515765]
[1747246174612,5.68860572,175.79,175.74,19.46]
[1747246174613,5.68860572,175.79,175.75,17.24515765]
[1747246174981,5.68860572,175.79,175.74,19.46]
[1747246175384,5.68860572,175.79,175.75,17.24515765]
[1747246175583,17.24515765,175.8,175.75,17.24515765]
[1747246176876,17.24515765,175.8,175.74,19.46]
[1747246177082,17.24515765,175.8,175.76,17.24515765]
[1747246177294,17.24515765,175.8,175.74,19.46]
[1747246177493,17.24515765,175.8,175.76,17.24515765]
[1747246177675,22.93376337,175.79,175.74,36.70515765]
[1747246178406,5.68860572,175.79,175.75,17.24515765]
[1747246179175,22.93376337,175.79,175.74,19.46]
[1747246179515,22.93376337,175.79,175.74,36.70515765]